fUSD/lending_fUSD_20250522
["ID","MTS","AMOUNT","RATE_DAILY","PERIOD"]
[362026347,1747938653314,-486.62,0.00038075,5]
[362026348,1747938653324,-420.0,0.00038075,5]
[362026350,1747938653334,-420.0,0.00038075,5]
[362026351,1747938653343,-755.88,0.00038075,5]
[362026352,1747938653353,-420.0,0.00038075,5]
[362026353,1747938653363,-723.13,0.00038075,5]
[362026354,1747938653373,-494.6,0.00038075,5]
[362026355,1747938653384,-420.0,0.00038075,5]
[362026356,1747938653398,-420.0,0.00038075,5]
[362026357,1747938653407,-420.0,0.00038075,5]
[362026358,1747938653417,-420.0,0.00038075,5]
[362026359,1747938653427,-1059.84,0.00038075,5]
[362026360,1747938653438,-420.0,0.00038075,5]
[362026361,1747938653447,-1876.21,0.00038075,5]
[362026362,1747938653457,-606.83,0.00038075,5]
[362026363,1747938653467,-235.57167793,0.00038075,5]
[362026364,1747938653477,-420.0,0.00038075,5]
[362026365,1747938653486,-622.13,0.00038075,5]
[362026366,1747938653495,-420.0,0.00038075,5]
[362026367,1747938653504,-420.0,0.00038075,5]
[362026368,1747938653513,-420.0,0.00038075,5]
[362026369,1747938653522,-3510.12,0.00038075,5]
[362026370,1747938653531,-420.0,0.00038075,5]
[362026371,1747938653540,-420.0,0.00038077,5]
[362026372,1747938653550,-420.0,0.00038077,5]
[362026373,1747938653559,-420.0,0.00038077,5]
[362026374,1747938653569,-420.0,0.00038077,5]
[362026375,1747938653578,-166.52369281,0.00038077,5]
[362026376,1747938653587,-420.0,0.00038077,5]
[362026377,1747938653597,-420.0,0.00038077,5]
[362026378,1747938653606,-420.0,0.00038077,5]
[362026379,1747938653616,-193.79891498,0.00038077,5]
[362026380,1747938653625,-255.50821694,0.00038077,5]
[362026381,1747938653635,-302.40112441,0.00038077,5]
[362026382,1747938653644,-420.0,0.00038078,5]
[362026383,1747938653653,-730.79759416,0.00038078,5]
[362026384,1747938653663,-561.15119749,0.00038078,5]
[362026385,1747938653673,-600.0,0.00038079,60]
[362026386,1747938653682,-800.0,0.00038079,60]
[362026387,1747938653691,-420.0,0.00038082,14]
[362026388,1747938653701,-12500.0,0.00038082,5]
[362026389,1747938653710,-10933.76916578,0.00038082,5]
[362026390,1747938653719,-12500.0,0.00038082,5]
[362026391,1747938653728,-595.15648395,0.00038082,3]
[362026392,1747938653736,-1473.77,0.00038082,2]
[362026393,1747938653745,-2930.85,0.000381,2]
[362026395,1747938653754,-500.0,0.00038104,7]
[362026397,1747938653763,-1100.0,0.0003811,7]
[362026399,1747938653772,-500.0,0.00038171,7]
[362026401,1747938653782,-500.0,0.0003818,7]
[362026403,1747938653792,-1100.0,0.00038184,7]
[362026405,1747938653801,-152.0,0.00038197,3]
[362026407,1747938653812,-500.0,0.00038199,7]
[362026409,1747938653821,-211.0,0.0003825,2]
[362026411,1747938653830,-1100.0,0.00038264,7]
[362026412,1747938653840,-500.0,0.00038283,7]
[362026414,1747938653849,-8000.0,0.00038284,11]
[362026416,1747938653858,-1100.0,0.00038289,7]
[362026418,1747938653868,-1000.0,0.000383,2]
[362026420,1747938653877,-210.0,0.000383,2]
[362026422,1747938653886,-210.0,0.000383,30]
[362026424,1747938653896,-151.2272559,0.00038324,2]
[362026426,1747938653906,-1100.0,0.00038329,7]
[362026428,1747938653916,-420.0,0.00038339,5]
[362026430,1747938653925,-420.0,0.00038339,5]
[362026432,1747938653935,-420.0,0.00038339,5]
[362026434,1747938653944,-420.0,0.00038339,5]
[362026435,1747938653953,-420.0,0.00038339,5]
[362026436,1747938653962,-420.0,0.00038339,5]
[362026437,1747938653972,-703.76,0.00038339,5]
[362026438,1747938653982,-420.0,0.00038339,5]
[362026439,1747938653991,-2167.57,0.00038339,5]
[362026440,1747938654000,-503.73688208,0.00038339,5]
[362026441,1747938654010,-486.62,0.00038349,5]
[362026442,1747938654020,-420.0,0.00038349,5]
[362026443,1747938654030,-420.0,0.00038349,5]
[362026444,1747938654040,-755.88,0.00038349,5]
[362026445,1747938654050,-420.0,0.00038349,5]
[362026446,1747938654059,-723.13,0.00038349,5]
[362026447,1747938654069,-494.6,0.00038349,5]
[362026448,1747938654078,-420.0,0.00038349,5]
[362026449,1747938654088,-420.0,0.00038349,5]
[362026450,1747938654097,-420.0,0.00038349,5]
[362026451,1747938654107,-420.0,0.00038349,5]
[362026452,1747938654116,-1059.84,0.00038349,5]
[362026453,1747938654125,-420.0,0.00038349,5]
[362026454,1747938654135,-1876.21,0.00038349,5]
[362026455,1747938654144,-606.83,0.00038349,5]
[362026456,1747938654153,-420.0,0.00038349,5]
[362026457,1747938654163,-622.13,0.00038349,5]
[362026458,1747938654172,-420.0,0.00038349,5]
[362026459,1747938654181,-420.0,0.00038349,5]
[362026460,1747938654191,-420.0,0.00038349,5]
[362026461,1747938654200,-3510.12,0.00038349,5]
[362026462,1747938654210,-420.0,0.00038349,5]
[362026463,1747938654220,-420.0,0.00038351,5]
[362026464,1747938654229,-420.0,0.00038351,5]
[362026465,1747938654239,-420.0,0.00038351,5]
[362026466,1747938654249,-420.0,0.00038351,5]
[362026467,1747938654259,-420.0,0.00038351,5]
[362026468,1747938654268,-420.0,0.00038351,5]
[362026469,1747938654278,-420.0,0.00038351,5]
[362026470,1747938654287,-420.0,0.00038352,5]
[362026471,1747938654297,-599.60298507,0.00038355,30]
[362026472,1747938654307,-599.60298507,0.00038355,30]
[362026473,1747938654318,-300.0,0.00038355,30]
[362026474,1747938654327,-420.0,0.00038356,14]
[362026475,1747938654336,-440.00000001,0.00038356,7]
[362026476,1747938654346,-1473.77,0.00038356,2]
[362026477,1747938654355,-178.92295095,0.00038356,2]
[362026478,1747938654365,-1100.0,0.00038368,7]
[362026479,1747938654374,-208.9,0.000384,22]
[362026480,1747938654383,-2000.0,0.000384,2]
[362026481,1747938654395,-1100.0,0.00038429,7]
[362026482,1747938654405,-1625.1430509,0.00038438,2]
[362026483,1747938654414,-3709.2542628,0.00038438,2]
[362026484,1747938654423,-500.0,0.00038462,7]
[362026485,1747938654434,-578.20924308,0.00038464,30]
[362026486,1747938654443,-578.20924308,0.00038464,30]
[362026487,1747938654453,-1156.41848616,0.00038464,30]
[362026488,1747938654462,-300.0,0.00038464,30]
[362026489,1747938654472,-300.0,0.0003847,2]
[362026490,1747938654482,-500.0,0.00038497,7]
[362026492,1747938654492,-1000.0,0.000385,2]
[362026494,1747938654501,-160.12116527,0.000385,120]
[362026495,1747938654511,-155.81,0.000385,31]
[362026496,1747938654520,-155.81,0.000385,31]
[362026497,1747938654530,-155.81,0.000385,31]
[362026498,1747938654540,-155.81,0.000385,31]
[362026499,1747938654550,-155.81,0.000385,31]
[362026500,1747938654560,-155.81,0.000385,31]
[362026501,1747938654569,-155.81,0.000385,31]
[362026502,1747938654579,-155.81,0.000385,31]
[362026503,1747938654588,-155.81,0.000385,31]
[362026504,1747938654598,-155.81,0.000385,31]
[362026505,1747938654607,-155.81,0.000385,31]
[362026506,1747938654617,-155.81,0.000385,31]
[362026507,1747938654626,-155.81,0.000385,31]
[362026508,1747938654636,-155.81,0.000385,31]
[362026509,1747938654646,-155.81,0.000385,31]
[362026510,1747938654655,-155.81,0.000385,31]
[362026511,1747938654665,-155.81,0.000385,31]
[362026512,1747938654674,-155.81,0.000385,31]
[362026514,1747938654684,-155.81,0.000385,31]
[362026516,1747938654693,-155.81,0.000385,31]
[362026518,1747938654703,-155.81,0.000385,31]
[362026519,1747938654712,-155.81,0.000385,31]
[362026521,1747938654722,-155.81,0.000385,31]
[362026523,1747938654731,-155.81,0.000385,31]
[362026525,1747938654741,-500.0,0.00038507,7]
[362026527,1747938654750,-500.0,0.00038518,7]
[362026529,1747938654760,-500.0,0.00038533,7]
[362026531,1747938654769,-557.5788265,0.00038574,30]
[362026533,1747938654779,-557.5788265,0.00038574,30]
[362026535,1747938654788,-151.0,0.00038574,30]
[362026537,1747938654798,-1115.157653,0.00038574,30]
[362026539,1747938654808,-300.0,0.00038574,30]
[362026541,1747938654818,-431.68,0.00038582,2]
[362026542,1747938654828,-288.77319,0.000386,120]
[362026543,1747938654837,-5471.73412685,0.000386,10]
[362026545,1747938654847,-420.0,0.00038613,5]
[362026547,1747938654856,-420.0,0.00038613,5]
[362026549,1747938654866,-420.0,0.00038613,5]
[362026551,1747938654876,-420.0,0.00038613,5]
[362026552,1747938654885,-420.0,0.00038613,5]
[362026554,1747938654895,-420.0,0.00038613,5]
[362026555,1747938654904,-703.76,0.00038613,5]
[362026556,1747938654914,-420.0,0.00038613,5]
[362026557,1747938654923,-2167.57,0.00038613,5]
[362026558,1747938654932,-486.62,0.00038623,5]
[362026559,1747938654942,-434.05401274,0.00038623,5]
[362026560,1747938654951,-230.92769425,0.00038623,5]
[362026561,1747938654961,-755.88,0.00038623,5]
[362026562,1747938654970,-420.0,0.00038623,5]
[362026563,1747938654979,-723.13,0.00038623,5]
[362026564,1747938654989,-494.6,0.00038623,5]
[362026565,1747938654998,-420.0,0.00038623,5]
[362026566,1747938655007,-420.0,0.00038623,5]
[362026567,1747938655016,-420.0,0.00038623,5]
[362026568,1747938655025,-420.0,0.00038623,5]
[362026569,1747938655035,-1059.84,0.00038623,5]
[362026570,1747938655044,-420.0,0.00038623,5]
[362026571,1747938655054,-1876.21,0.00038623,5]
[362026572,1747938655064,-606.83,0.00038623,5]
[362026573,1747938655073,-420.0,0.00038623,5]
[362026574,1747938655082,-622.13,0.00038623,5]
[362026575,1747938655091,-420.0,0.00038623,5]
[362026576,1747938655100,-420.0,0.00038623,5]
[362026577,1747938655110,-420.0,0.00038623,5]
[362026578,1747938655120,-3510.12,0.00038623,5]
[362026579,1747938655129,-420.0,0.00038623,5]
[362026580,1747938655214,-291.68797185,0.00038624,39]
[362026581,1747938655253,-429.57666869,0.00038625,5]
[362026582,1747938655263,-420.0,0.00038625,5]
[362026583,1747938655273,-420.0,0.00038625,5]
[362026584,1747938655283,-420.0,0.00038625,5]
[362026585,1747938655292,-420.0,0.00038625,5]
[362026586,1747938655302,-420.0,0.00038625,5]
[362026587,1747938655312,-420.0,0.00038625,5]
[362026588,1747938655322,-420.0,0.00038626,5]
[362026589,1747938655332,-600.0,0.00038627,60]
[362026590,1747938655341,-800.0,0.00038627,60]
[362026591,1747938655351,-241.00935287,0.00038627,60]
[362026592,1747938655360,-420.0,0.0003863,14]
[362026593,1747938655370,-1473.77,0.0003863,2]
[362026594,1747938655380,-2084.77,0.000387,120]
[362026595,1747938655392,-151.74,0.00038722,2]
[362026596,1747938655402,-500.0,0.00038738,7]
[362026597,1747938655412,-686.88283407,0.00038747,7]
[362026598,1747938655422,-154.21243814,0.0003878,2]
[362026599,1747938655432,-348.14673546,0.0003878,7]
[362026600,1747938655442,-3491.80539744,0.0003878,2]
[362026601,1747938655452,-500.0,0.0003879,7]
[362026602,1747938655462,-1264.9404002,0.00038797,2]
[362026603,1747938655473,-1100.0,0.00038815,7]
[362026604,1747938655483,-500.0,0.00038819,7]
[362026605,1747938655492,-10000.0,0.0003883,120]
[362026606,1747938655502,-947.27716041,0.00038853,2]
[362026607,1747938655512,-5800.0,0.00038862,14]
[362026608,1747938655522,-5800.0,0.0003887,14]
[362026609,1747938655532,-150.0,0.00038877,7]
[362026610,1747938655542,-150.0,0.00038877,7]
[362026611,1747938655551,-150.0,0.00038877,7]
[362026612,1747938655561,-150.0,0.00038877,7]
[362026613,1747938655571,-150.0,0.00038877,7]
[362026614,1747938655580,-150.0,0.00038877,7]
[362026615,1747938655590,-150.0,0.00038877,7]
[362026616,1747938655600,-150.0,0.00038877,7]
[362026617,1747938655609,-150.0,0.00038877,7]
[362026618,1747938655619,-150.0,0.00038877,7]
[362026619,1747938655628,-150.0,0.00038877,7]
[362026620,1747938655638,-150.0,0.00038877,7]
[362026621,1747938655648,-249.525,0.00038878,2]
[362026622,1747938655657,-150.0,0.00038878,2]
[362026623,1747938655667,-5800.0,0.00038879,14]
[362026624,1747938655676,-669.106098,0.00038879,10]
[362026625,1747938655686,-276741.25266928,0.0003888,11]
[362026626,1747938655696,-251679.41012939,0.0003888,120]
[362026627,1747938655715,-200.0,0.00035486,13]
[362026628,1747938655726,-2928.95581054,0.0003888,120]
[362026631,1747939533119,-302.63,0.00013699,2]
[362026632,1747939533142,-200.0,0.00014384,2]
[362026633,1747939533165,-721.77160804,0.00015067,2]
[362026634,1747939541091,-478.22839196,0.00015067,2]
[362026635,1747939541113,-250.0,0.00015068,2]
[362026636,1747939541135,-200.0,0.00015068,2]
[362026637,1747939541157,-250.0,0.00015068,2]
[362026638,1747939541179,-200.0,0.00015068,2]
[362026639,1747939541200,-250.0,0.00015068,2]
[362026640,1747939541221,-200.0,0.00015068,2]
[362026641,1747939541243,-300.0,0.00016572,2]
[362026642,1747939541263,-122.40886585,0.00016573,2]
[362026643,1747939642125,-295.70203985,0.00016573,2]
[362026644,1747939648118,-250.0,0.00015,2]
[362026645,1747939648143,-1261.8890943,0.00016573,2]
[362026646,1747939648167,-200.0,0.00017341,2]
[362026647,1747939648190,-300.0,0.00018108,2]
[362026648,1747939648214,-200.0,0.00018228,2]
[362026649,1747939648237,-1434.92620166,0.00018229,2]
[362026650,1747939650116,-300.0,0.00017,2]
[362026651,1747939650140,-141.44762862,0.00018229,2]
[362026652,1747939745077,-250.0,0.00015,2]
[362026653,1747939745098,-180.63385089,0.00016,2]
[362026670,1747939831720,-19.36614911,0.00016,2]
[362026671,1747939831731,-200.0,0.000165,2]
[362026672,1747939831743,-300.0,0.00017,2]
[362026673,1747939831754,-200.0,0.00017492,2]
[362026674,1747939831767,-250.0,0.0001823,2]
[362026675,1747939831778,-200.0,0.0001823,2]
[362026676,1747939831788,-350.0,0.00019,2]
[362026677,1747939831799,-302.63,0.00020187,2]
[362026678,1747939831811,-207.81675299,0.000209,2]
[362026679,1747939831821,-400.0,0.00021,2]
[362026680,1747939831831,-242.82835682,0.000229,8]
[362026681,1747939831842,-450.0,0.00023,2]
[362026682,1747939831853,-708.34115594,0.00023448,2]
[362026683,1747939831864,-242.82835654,0.00023659,9]
[362026684,1747939831875,-1200.0,0.00024416,2]
[362026685,1747939831886,-242.82835654,0.00024417,11]
[362026687,1747939831896,-300.0,0.00024999,2]
[362026689,1747939831907,-5661.1714147,0.00025,3]
[362026691,1747939831917,-500.0,0.00025,2]
[362026693,1747939831927,-242.82835654,0.00025176,12]
[362026695,1747939831937,-242.82835654,0.00025934,14]
[362026697,1747939831948,-1680.0,0.00026587,2]
[362026699,1747939831958,-302.63,0.00026676,2]
[362026701,1747939831968,-242.82835654,0.00026693,15]
[362026704,1747939831979,-550.0,0.00027,2]
[362026706,1747939831989,-242.82835654,0.00027452,17]
[362026708,1747939831999,-161.95,0.00027798,2]
[362026710,1747939832009,-158.79,0.00028039,2]
[362026713,1747939832019,-158.79,0.0002805,2]
[362026715,1747939832030,-158.79,0.00028061,2]
[362026717,1747939832039,-158.79,0.00028072,2]
[362026719,1747939832049,-158.79,0.00028082,2]
[362026721,1747939832058,-158.79,0.00028093,2]
[362026723,1747939832067,-158.79,0.00028104,2]
[362026726,1747939832078,-158.79,0.00028115,2]
[362026728,1747939832087,-158.79,0.00028126,2]
[362026730,1747939832097,-158.79,0.00028136,2]
[362026732,1747939832106,-158.79,0.00028147,2]
[362026734,1747939832115,-158.79,0.00028158,2]
[362026736,1747939832125,-158.79,0.00028169,2]
[362026737,1747939832134,-158.79,0.0002818,2]
[362026739,1747939832143,-242.82835654,0.0002821,18]
[362026742,1747939832153,-1323.81,0.00028458,2]
[362026743,1747939832163,-260.0,0.00028952,2]
[362026745,1747939832172,-242.82835654,0.00028969,20]
[362026747,1747939832182,-151.8,0.00029,2]
[362026749,1747939832191,-600.0,0.00029,2]
[362026796,1747939832626,-150.0,0.00029176,2]
[362026799,1747939832643,-242.82835654,0.00029728,21]
[362026802,1747939832658,-150.0,0.00029767,7]
[362026804,1747939832666,-159.62,0.00029995,3]
[362026806,1747939832675,-151.74,0.00030089,2]
[362026808,1747939832684,-183.41,0.0003047,120]
[362026810,1747939832693,-242.82835654,0.00030486,23]
[362026813,1747939832702,-650.0,0.00031,2]
[362026815,1747939832710,-242.82835654,0.00031245,24]
[362026817,1747939832719,-192.63,0.00031859,2]
[362026819,1747939832728,-1000.0,0.00031963,2]
[362026821,1747939832736,-242.82835654,0.00032003,26]
[362026823,1747939832744,-370.26,0.00032532,2]
[362026825,1747939832752,-242.82835654,0.00032762,27]
[362026827,1747939832764,-269.1558,0.00032776,2]
[362026828,1747939832772,-177.3621,0.00032776,2]
[362026829,1747939832780,-221.84180069,0.00032857,30]
[362026830,1747939832787,-420.0,0.00032876,5]
[362026831,1747939832795,-420.0,0.00032876,5]
[362026832,1747939832804,-420.0,0.00032876,5]
[362026833,1747939832811,-420.0,0.00032876,5]
[362026834,1747939832817,-420.0,0.00032876,5]
[362026835,1747939832825,-420.0,0.00032876,5]
[362026836,1747939832832,-420.0,0.00032876,5]
[362026837,1747939832840,-420.0,0.00032876,5]
[362026838,1747939832849,-545.63272352,0.00032876,5]
[362026839,1747939832856,-420.0,0.00032876,5]
[362026840,1747939832865,-420.0,0.00032876,5]
[362026841,1747939832873,-420.0,0.00032876,5]
[362026842,1747939832881,-420.0,0.00032876,5]
[362026843,1747939832889,-420.0,0.00032876,5]
[362026844,1747939832896,-420.0,0.00032876,5]
[362026845,1747939832903,-420.0,0.00032876,5]
[362026846,1747939832911,-420.0,0.00032876,5]
[362026847,1747939832920,-420.0,0.00032876,5]
[362026848,1747939832928,-420.0,0.00032876,5]
[362026849,1747939832937,-420.0,0.00032876,5]
[362026850,1747939832944,-171.36148027,0.00032876,5]
[362026851,1747939832951,-420.0,0.00032876,5]
[362026852,1747939832961,-420.0,0.00032876,5]
[362026853,1747939832967,-420.0,0.00032876,5]
[362026854,1747939832975,-420.0,0.00032876,5]
[362026855,1747939832984,-420.0,0.00032876,5]
[362026856,1747939832991,-420.0,0.00032876,5]
[362026857,1747939832998,-420.0,0.00032876,5]
[362026858,1747939833004,-420.0,0.00032876,5]
[362026859,1747939833013,-420.0,0.00032876,5]
[362026860,1747939833021,-420.0,0.00032876,5]
[362026861,1747939833028,-420.0,0.00032876,5]
[362026862,1747939833036,-420.0,0.00032876,5]
[362026863,1747939833043,-420.0,0.00032876,5]
[362026864,1747939833050,-466.91125335,0.00032876,5]
[362026865,1747939833058,-420.0,0.00032876,5]
[362026866,1747939833066,-420.0,0.00032876,5]
[362026867,1747939833073,-420.0,0.00032876,5]
[362026868,1747939833081,-420.0,0.00032876,5]
[362026869,1747939833088,-420.0,0.00032876,5]
[362026870,1747939833095,-420.0,0.00032876,5]
[362026871,1747939833102,-420.0,0.00032876,5]
[362026872,1747939833109,-420.0,0.00032876,5]
[362026873,1747939833117,-420.0,0.00032876,5]
[362026874,1747939833124,-420.0,0.00032876,5]
[362026875,1747939833132,-420.0,0.00032876,5]
[362026876,1747939833140,-420.0,0.00032876,5]
[362026877,1747939833149,-420.0,0.00032876,5]
[362026878,1747939833156,-420.0,0.00032876,5]
[362026879,1747939833163,-420.0,0.00032876,5]
[362026880,1747939833172,-420.0,0.00032876,5]
[362026881,1747939833180,-420.0,0.00032876,5]
[362026882,1747939833190,-420.0,0.00032876,5]
[362026883,1747939833197,-420.0,0.00032876,5]
[362026884,1747939833204,-420.0,0.00032876,5]
[362026885,1747939833211,-420.0,0.00032876,5]
[362026886,1747939833220,-420.0,0.00032876,5]
[362026887,1747939833229,-420.0,0.00032876,5]
[362026888,1747939833236,-420.0,0.00032876,5]
[362026889,1747939833244,-420.0,0.00032876,5]
[362026890,1747939833251,-420.0,0.00032876,5]
[362026891,1747939833258,-420.0,0.00032876,5]
[362026892,1747939833265,-420.0,0.00032876,5]
[362026893,1747939833273,-209.5743512,0.00032876,5]
[362026894,1747939833281,-420.0,0.00032876,5]
[362026895,1747939833290,-420.0,0.00032876,5]
[362026896,1747939833296,-420.0,0.00032876,5]
[362026897,1747939833303,-420.0,0.00032876,5]
[362026898,1747939833310,-420.0,0.00032876,5]
[362026899,1747939833316,-420.0,0.00032876,5]
[362026900,1747939833324,-420.0,0.00032876,5]
[362026901,1747939833333,-420.0,0.00032876,5]
[362026902,1747939833341,-420.0,0.00032876,5]
[362026903,1747939833348,-420.0,0.00032876,5]
[362026904,1747939833355,-420.0,0.00032876,5]
[362026905,1747939833365,-420.0,0.00032876,5]
[362026906,1747939833374,-420.0,0.00032876,5]
[362026907,1747939833382,-420.0,0.00032876,5]
[362026908,1747939833389,-420.0,0.00032876,5]
[362026909,1747939833397,-420.0,0.00032876,5]
[362026910,1747939833404,-420.0,0.00032876,5]
[362026911,1747939833412,-420.0,0.00032876,5]
[362026912,1747939833419,-420.0,0.00032876,5]
[362026913,1747939833426,-420.0,0.00032876,5]
[362026914,1747939833433,-420.0,0.00032876,5]
[362026915,1747939833439,-420.0,0.00032876,5]
[362026916,1747939833446,-565.43,0.00032876,5]
[362026917,1747939833452,-420.0,0.00032876,5]
[362026918,1747939833459,-420.0,0.00032876,5]
[362026919,1747939833468,-420.0,0.00032876,5]
[362026920,1747939833477,-420.0,0.00032876,5]
[362026921,1747939833487,-420.0,0.00032876,5]
[362026922,1747939833497,-420.0,0.00032876,5]
[362026923,1747939833506,-177.91897651,0.00032876,5]
[362026924,1747939833516,-420.0,0.00032876,5]
[362026925,1747939833525,-420.0,0.00032876,5]
[362026926,1747939833534,-420.0,0.00032876,5]
[362026927,1747939833544,-420.0,0.00032876,5]
[362026928,1747939833554,-420.0,0.00032876,5]
[362026929,1747939833563,-420.0,0.00032876,5]
[362026930,1747939833572,-420.0,0.00032876,5]
[362026931,1747939833582,-420.0,0.00032876,5]
[362026932,1747939833591,-420.0,0.00032876,5]
[362026933,1747939833600,-420.0,0.00032876,5]
[362026934,1747939833610,-420.0,0.00032876,5]
[362026935,1747939833619,-420.0,0.00032876,5]
[362026936,1747939833630,-420.0,0.00032876,5]
[362026937,1747939833639,-420.0,0.00032876,5]
[362026938,1747939833648,-420.0,0.00032876,5]
[362026939,1747939833658,-420.0,0.00032876,5]
[362026940,1747939833667,-420.0,0.00032876,5]
[362026941,1747939833676,-420.0,0.00032876,5]
[362026942,1747939833685,-420.0,0.00032876,5]
[362026943,1747939833694,-420.0,0.00032876,5]
[362026944,1747939833704,-198.39984814,0.00032876,5]
[362026945,1747939833713,-420.0,0.00032876,5]
[362026946,1747939833723,-420.0,0.00032876,5]
[362026947,1747939833733,-420.0,0.00032876,5]
[362026948,1747939833742,-420.0,0.00032876,5]
[362026949,1747939833751,-420.0,0.00032876,5]
[362026950,1747939833762,-420.0,0.00032876,5]
[362026951,1747939833775,-420.0,0.00032876,5]
[362026952,1747939833784,-420.0,0.00032876,5]
[362026953,1747939833794,-420.0,0.00032876,5]
[362026954,1747939833804,-420.0,0.00032876,5]
[362026955,1747939833815,-420.0,0.00032876,5]
[362026956,1747939833825,-420.0,0.00032876,5]
[362026957,1747939833834,-420.0,0.00032876,5]
[362026958,1747939833847,-420.0,0.00032876,5]
[362026959,1747939833857,-420.0,0.00032876,5]
[362026960,1747939833867,-420.0,0.00032876,5]
[362026961,1747939833877,-420.0,0.00032876,5]
[362026962,1747939833887,-420.0,0.00032876,5]
[362026963,1747939833896,-420.0,0.00032876,5]
[362026964,1747939833906,-420.0,0.00032876,5]
[362026965,1747939833915,-420.0,0.00032876,5]
[362026966,1747939833924,-300.0,0.00032876,5]
[362026967,1747939833935,-420.0,0.00032876,5]
[362026968,1747939833945,-420.0,0.00032876,5]
[362026969,1747939833954,-420.0,0.00032876,5]
[362026970,1747939833963,-420.0,0.00032876,5]
[362026971,1747939833973,-420.0,0.00032876,5]
[362026972,1747939833983,-420.0,0.00032876,5]
[362026973,1747939833992,-420.0,0.00032876,5]
[362026974,1747939834002,-420.0,0.00032876,5]
[362026975,1747939834011,-420.0,0.00032876,5]
[362026976,1747939834020,-420.0,0.00032876,5]
[362026977,1747939834030,-420.0,0.00032876,5]
[362026978,1747939834039,-420.0,0.00032876,5]
[362026979,1747939834049,-420.0,0.00032876,5]
[362026980,1747939834058,-420.0,0.00032876,5]
[362026981,1747939834068,-420.0,0.00032876,5]
[362026982,1747939834078,-420.0,0.00032876,5]
[362026983,1747939834088,-420.0,0.00032876,5]
[362026984,1747939834097,-420.0,0.00032876,5]
[362026985,1747939834106,-420.0,0.00032876,5]
[362026986,1747939834117,-420.0,0.00032876,5]
[362026987,1747939834127,-420.0,0.00032876,5]
[362026988,1747939834136,-420.0,0.00032876,5]
[362026989,1747939834146,-420.0,0.00032876,5]
[362026990,1747939834155,-420.0,0.00032876,5]
[362026991,1747939834165,-420.0,0.00032876,5]
[362026992,1747939834174,-335.73540547,0.00032876,5]
[362026993,1747939834184,-420.0,0.00032876,5]
[362026994,1747939834194,-420.0,0.00032876,5]
[362026995,1747939834204,-420.0,0.00032876,5]
[362026996,1747939834213,-420.0,0.00032876,5]
[362026997,1747939834223,-420.0,0.00032876,5]
[362026998,1747939834233,-420.0,0.00032876,5]
[362026999,1747939834242,-480.98710425,0.00032876,5]
[362027000,1747939834251,-420.0,0.00032876,5]
[362027001,1747939834261,-420.0,0.00032876,5]
[362027002,1747939834271,-420.0,0.00032876,5]